Cogmind - Beta 15 @@@ ROGUE MODE // 2025.07.10 @ 20:03:23 Player: Cog on my mind Result: Destroyed by KL-4N7(R) with Subdweller Laser Performance ------------- Evolutions (0) 0 Regions Visited (3) 600 Robots Destroyed (30) 150 Value Destroyed (660) 660 Prototype IDs (3) 60 Alien Tech Used (0) 0 Bonus (0) 0 TOTAL SCORE: 1470 Bonus ------- None Cogmind --------- Core Integrity 0/250 Matter 288/300 Energy 200/200 System Corruption 0% Temperature Cool (6) Movement Rolling (90) Location -10/Subcaves Parts ------- > --- POWER (1) -------- Subdweller Power Source > --- PROPULSION (2) --- Wheel Compact Wheel > --- UTILITY (2) ------ Medium Storage Unit Subdweller Optics > --- WEAPON (2) ------- Barrage Gun > --- INVENTORY (10) --- Makeshift Power Source Disposable Heat Sink Huge Storage Unit High-capacity Matter Pod (200) Subdweller Optics Hacking Suite EM Pulse Gun Subdweller Beam Cannon Ripper Peak State ------------ > --- POWER ------------ Subdweller Power Source > --- PROPULSION ------- Light Treads Wheel > --- UTILITY ---------- Disposable Heat Sink Medium Storage Unit > --- WEAPON ----------- Subdweller Beam Cannon Barrage Gun > --- INVENTORY -------- Makeshift Power Source Compact Wheel Huge Storage Unit High-capacity Matter Pod Subdweller Optics Subdweller Optics Hacking Suite EM Pulse Gun Subdweller Beam Cannon Ripper [Rating: 14] Favorites ----------- Power Ion Engine Engine Ion Engine Propulsion Light Treads Treads Light Treads Wheel Wheel Utility Medium Storage Unit Device Seismic Detector Storage Medium Storage Unit Weapon Assault Rifle Energy Gun EM Pulse Gun Energy Cannon Subdweller Beam Cannon Ballistic Gun Assault Rifle Build | -11 -10 -10 -10 ------- Run | Yrd Mat Min Sub Slots Evolved . | . . . . Power . | . . . . Propulsion . | . . . . Utility . | . . . . Weapon . | . . . . Parts Attached 28 | 8 4 2 14 Power 5 | 2 1 . 2 Engine 5 | 2 1 . 2 Core . | . . . . Reactor . | . . . . Propulsion 7 | 2 1 1 3 Treads 4 | 2 1 . 1 Leg . | . . . . Wheel 3 | . . 1 2 Hover . | . . . . Flight . | . . . . Utility 7 | 2 1 . 4 Device 5 | 1 . . 4 Storage 2 | 1 1 . . Processor . | . . . . Hackware . | . . . . Protection . | . . . . Artifact . | . . . . Weapon 9 | 2 1 1 5 Energy Gun 2 | . . 1 1 Energy Cannon 2 | . . . 2 Ballistic Gun 5 | 2 1 . 2 Ballistic Cannon . | . . . . Launcher . | . . . . Special Weapon . | . . . . Impact Weapon . | . . . . Slashing Weapon . | . . . . Piercing Weapon . | . . . . Special Melee Weapon . | . . . . Unidentified Prototypes . | . . . . Parts Lost 12 | . 3 5 4 Power 3 | . 1 1 1 Propulsion 5 | . 1 2 2 Utility 1 | . . . 1 Weapon 3 | . 1 2 . Highest Loss Streak 5 | . 3 5 2 To Critical Strikes . | . . . . Average Backups 8 | 2 6 9 9 Power . | . . 1 . Propulsion . | 1 1 . . Utility 3 | . 1 4 4 Weapon 2 | . 2 4 2 Tool/Special . | . . . . Unused Backups 10 | . 1 . 9 Power 2 | . . . 2 Propulsion 2 | . 1 . 1 Utility 4 | . . . 4 Weapon 2 | . . . 2 Tool/Special . | . . . . Average Slot Usage (%) 97 | . 99 97 96 Engine 13 | . 14 13 13 Treads 16 | . 27 27 10 Wheel 9 | . . . 15 Device 14 | . 14 14 14 Storage 14 | . 14 14 14 Energy Gun 4 | . . . 7 Energy Cannon 6 | . . . 10 Ballistic Gun 15 | . 28 27 8 Peak Build Rating 14 | 7 8 8 14 Average Rating 9 | 5 7 7 10 On Entrance 5 | . 7 8 5 Naked Turns . | . . . . Heaviest Build 33 | 15 19 19 33 Greatest Support 40 | 40 40 40 26 Greatest Overweight (x) 3 | . . 1 3 Average Overweight (x) 1 | . . . 1 Largest Inventory Capacity 10 | 8 10 10 10 Average Capacity 9 | 6 8 10 10 Most Carried 10 | 3 10 10 10 Average Carried 8 | 2 6 9 9 Final Capacity 10 | 8 10 10 10 Final Carried 10 | 3 10 8 9 Class Distribution -------------------- 69% | Scavenger-Mutant 30% | Mutant Dominant Class ---------------- Scavenger-Mutant | -10/Materials Scavenger-Mutant | -10/Mines Scavenger-Mutant | -10/Subcaves Resources | -11 -10 -10 -10 ----------- Run | Yrd Mat Min Sub Matter Collected 1007 | 269 446 . 292 Remotely . | . . . . Salvage Created 1084 | 34 583 . 467 Parts 81 | 4 51 . 26 Haulers Intercepted 1 | . 1 . . Recyclers Shooed 2 | . 2 . . Parts Field Recycled . | . . . . Retrieved Matter . | . . . . Parts Self-Destructed 5 | . . . 5 Prevented 1 | . . . 1 Kills | -11 -10 -10 -10 ------- Run | Yrd Mat Min Sub Combat Hostiles Destroyed 22 | . 15 . 7 Guns 17 | . 15 . 2 Cannons 5 | . . . 5 Classes Destroyed 10 | 1 7 . 2 Worker 1 | . 1 . . Tunneler 2 | 2 . . . Hauler 1 | . 1 . . Recycler 1 | . 1 . . Operator 1 | . 1 . . Watcher 2 | . 2 . . Swarmer 9 | . 9 . . Grunt 6 | . 6 . . Sentry 1 | . . . 1 Subdweller 6 | . . . 6 Best Kill Streak 5 | 1 5 . 2 Combat Bots Only 3 | . 3 . 2 Max Kills in Single Turn 2 | 1 2 . 1 Gunslinging 1 | . 1 . . Exploded . | . . . . Melee . | . . . . Uniques/NPCs Destroyed . | . . . . Combat | -11 -10 -10 -10 -------- Run | Yrd Mat Min Sub Hostile Shots Fired 130 | . 84 14 32 Missed 24 | . 12 3 9 Hits 106 | . 72 11 23 Melee 1 | . . 1 . Projectile 105 | . 72 10 23 AOE 9 | . . 9 . Critical Strikes 4 | . . . 4 Damage Taken 1529 | . 640 385 504 Core 261 | . 67 72 122 Absorbed by Shields . | . . . . Core Remaining (%) 100 | 100 . . . Volleys Fired 104 | 10 56 . 38 Largest 2 | 2 2 . 2 Hottest 160 | 40 40 . 160 Shots Fired 189 | 19 112 . 58 Gun 172 | 19 112 . 41 Cannon 17 | . . . 17 Launcher . | . . . . Special . | . . . . Kinetic 142 | 19 112 . 11 Thermal 17 | . . . 17 Explosive . | . . . . Electromagnetic 30 | . . . 30 Robot Hit Streak 11 | 4 11 . 10 Robot Miss Streak 5 | 4 5 . 2 Penetration Max . | . . . . Secondary Targets 5 | . 5 . . Max Gunslinging Chain 1 | . 1 . . Shots Hit Robots 112 | 9 64 . 39 Core Hits 45 | 2 29 . 14 Critical Kills 2 | 1 . . 1 Critical Parts Destroyed . | . . . . Critical Strikes 3 | 1 . . 2 Destroy 2 | 1 . . 1 Corrupt 1 | . . . 1 Melee Attacks . | . . . . Impact . | . . . . Slashing . | . . . . Piercing . | . . . . Sneak Attacks . | . . . . Combat Hostiles . | . . . . Follow-up Attacks . | . . . . Damage Inflicted 1649 | 128 812 . 709 Guns 1305 | 128 812 . 365 Cannons 276 | . . . 276 Explosions 68 | . . . 68 Melee . | . . . . Ramming . | . . . . Kinetic 1061 | 128 812 . 121 Thermal 344 | . . . 344 Explosive . | . . . . Electromagnetic 244 | . . . 244 Impact . | . . . . Slashing . | . . . . Piercing . | . . . . Highest Corruption . | . . . . Average Corruption . | . . . . Corruption Purged . | . . . . Corruption Blocked . | . . . . Overload Shots . | . . . . Overflow Damage . | . . . . Projectiles . | . . . . Explosions . | . . . . Melee . | . . . . Knockbacks . | . . . . Impact . | . . . . Kinetic . | . . . . Secondary . | . . . . Self-Inflicted Damage 55 | . . . 55 Shots 1 | . . . 1 Rammed . | . . . . Targets Rammed . | . . . . Kicked . | . . . . Crushed . | . . . . Highest Temperature 51 | . 12 . 51 Average Temperature 22 | . 5 . 30 Received Heat Transfer 255 | . 144 . 111 Siege Activations . | . . . . Martial Activations . | . . . . Shielding Activations . | . . . . Robots Disrupted . | . . . . Combat Hostiles . | . . . . Robots Corrupted 1 | . . . 1 Combat Hostiles 1 | . . . 1 Parts Fried 1 | . . . 1 Impact Corruptions . | . . . . Robots Melted . | . . . . Combat Hostiles . | . . . . Parts Melted 1 | . . . 1 Heat Transferred 420 | . . . 420 Parts Sabotaged . | . . . . Parts Stolen . | . . . . Parts Stripped . | . . . . Power Chain Reactions 1 | . . . 1 Alert | -11 -10 -10 -10 ------- Run | Yrd Mat Min Sub Maximum Alert Level 1 | . 1 . . Low Security (%) 91 | 100 87 100 . Level 1 8 | . 12 . . Level 2 . | . . . . Level 3 . | . . . . Level 4 . | . . . . Level 5 . | . . . . High Security . | . . . . Max Security . | . . . . Peak Influence 221 | 5 221 66 . Initial 66 | . . 66 . Average 90 | . 136 18 . Influence Increases 512 | 10 467 . 35 Destroy 0b10 Robot/C 320 | . 300 . 20 Destroy 0b10 Robot/NC 40 | 10 30 . . Destroy Leader 66 | . 66 . . Successful Hack 11 | . 11 . . Select Force Hacks 30 | . 30 . . Disable Machine 15 | . 15 . . Lose Combat Pursuer 30 | . 15 . 15 Influence Decreases 512 | 10 295 172 35 Entered New Map 106 | . . 106 . Time Decay 376 | 10 265 66 35 Lost Part 30 | . 30 . . Squads Dispatched 3 | . 3 . . Investigation 1 | . 1 . . Extermination . | . . . . Reinforcement 2 | . 2 . . Assault . | . . . . Garrison . | . . . . Intercept . | . . . . Searches Triggered . | . . . . Construction Impeded . | . . . . Haulers Reinforced . | . . . . Active Scanning Responses . | . . . . Cargo Convoy Interrupts . | . . . . Stealth | -11 -10 -10 -10 --------- Run | Yrd Mat Min Sub Distress Signals 2 | . 2 . . Communications Jammed . | . . . . Distress Signals . | . . . . Times Spotted 49 | . 25 13 11 Peak Tracking Total 15 | . 4 15 2 Tactical Retreats 4 | . 1 1 2 Traps | -11 -10 -10 -10 ------- Run | Yrd Mat Min Sub Traps Triggered . | . . . . Indirectly . | . . . . Trap Hack Attempts . | . . . . Triggered . | . . . . Disarmed . | . . . . Reprogrammed . | . . . . Reused . | . . . . Traps Extracted . | . . . . Installed . | . . . . Triggered . | . . . . Machines | -11 -10 -10 -10 ---------- Run | Yrd Mat Min Sub Machines Disabled 1 | . 1 . . Max in Single Turn 1 | . 1 . . Machines Repaired . | . . . . Machines Dismantled . | . . . . Machines Sabotaged . | . . . . Overloaded Fab Kills . | . . . . Hacking | -11 -10 -10 -10 --------- Run | Yrd Mat Min Sub Machines Accessed 7 | . 4 1 2 Terminals 4 | . 3 1 . Fabricators . | . . . . Repair Stations . | . . . . Recycling Units 1 | . 1 . . Scanalyzers . | . . . . Garrison Access . | . . . . Total Hacks 17 | . 10 2 5 Successful 10 | . 4 1 5 Failed 6 | . 5 1 . Catastrophic 1 | . . 1 . Database Lockouts 1 | . 1 . . Manual 11 | . 9 2 . Terminals 10 | . 8 2 . Fabricators . | . . . . Repair Stations . | . . . . Recycling Units 2 | . 2 . . Scanalyzers . | . . . . Garrison Access . | . . . . Terminal Hacks 7 | . 2 . 5 Record 4 | . . . 4 Prototype ID Bank 2 | . 2 . . Open Door 1 | . . . 1 Fabricator Hacks . | . . . . Repair Station Hacks . | . . . . Recycling Unit Hacks . | . . . . Scanalyzer . | . . . . Garrison Access Hacks . | . . . . Unauthorized Hacks 3 | . 2 1 . Terminals 2 | . 1 1 . Track 1 | . . 1 . Botnet 1 | . 1 . . Fabricators . | . . . . Repair Stations . | . . . . Recycling Units 1 | . 1 . . Tunnel 1 | . 1 . . Scanalyzers . | . . . . Garrison Access . | . . . . Data Cores Recovered . | . . . . Used . | . . . . Hacking Detections 5 | . 4 1 . Full Trace Events . | . . . . Feedback Events . | . . . . Feedback Blocked . | . . . . Robot Schematics Acquired . | . . . . Robots Built . | . . . . Authchips . | . . . . Time . | . . . . Total Robot Build Rating . | . . . . Part Schematics Acquired . | . . . . Parts Built . | . . . . Authchips . | . . . . Time . | . . . . Total Part Build Rating . | . . . . Parts Repaired . | . . . . Time . | . . . . Parts Recycled . | . . . . Recycled Matter . | . . . . Retrieved Matter . | . . . . Retrieved Components . | . . . . Parts Scanalyzed . | . . . . Part Schematics Acquired . | . . . . Parts Damaged . | . . . . Bothacking | -11 -10 -10 -10 ------------ Run | Yrd Mat Min Sub Used RIF Installer . | . . . . Robots Hacked . | . . . . Non-combat . | . . . . Combat . | . . . . Robot Hacks Applied . | . . . . Relay Couplers Released . | . . . . Fabnet Peak Effective % . | . . . . Robots Rewired . | . . . . Allies Hacked . | . . . . Hacks Repelled . | . . . . Allies | -11 -10 -10 -10 -------- Run | Yrd Mat Min Sub Total Allies . | . . . . Largest Group . | . . . . Highest-Rated Group . | . . . . Highest-Rated Ally . | . . . . Total Orders . | . . . . Ally Attacks . | . . . . Total Damage . | . . . . Kills . | . . . . Allies Corrupted . | . . . . Allies Melted . | . . . . Intel | -11 -10 -10 -10 ------- Run | Yrd Mat Min Sub Active Infowar (turns) 2760 | 26 712 271 1751 Optics 738 | . . . 738 Seismic 2022 | 26 712 271 1013 Robot Analysis Total . | . . . . Derelict Logs Recovered 3 | . . 2 1 Drone Launches . | . . . . Drone Recoveries . | . . . . Exploration | -11 -10 -10 -10 ------------- Run | Yrd Mat Min Sub Turns Passed 2902 | 141 712 271 1778 Spaces Moved 2049 | 62 317 168 1502 Core 3 | 3 . . . Treads 547 | 59 317 158 13 Legs . | . . . . Wheels 1499 | . . 10 1489 Hover . | . . . . Flight . | . . . . Fastest Speed 50 | 50 160 95 90 Average Speed 119 | 154 160 156 105 Slowest Speed 160 | 160 160 160 160 Overloaded Moves . | . . . . Propulsion Burnouts . | . . . . Robots Hopped . | . . . . Potential Cave-ins . | . . . . Cave-ins Triggered . | . . . . Exploration Rate (%) 44 | 5 66 45 62 Regions Visited 3 Branch Regions 2 Pre-discovered Areas 4 | . 1 1 2 Known Exits Taken . | . . . . Unknown Exits Taken 3 | 1 1 1 . Scrap Searched 3 | . . . 3 Spaces Dug . | . . . . Terrain Destroyed 8 | . . . 8 Melee . | . . . . Projectile . | . . . . AOE 8 | . . . 8 Terrain Rammed . | . . . . Walls Destroyed . | . . . . Machines Disabled . | . . . . Actions | -11 -10 -10 -10 --------- Run | Yrd Mat Min Sub Total 2316 | 84 417 176 1639 Wait 103 | 3 27 7 66 Move 2046 | 61 316 167 1502 Hop . | . . . . Pick Up 21 | 2 10 . 9 Fast Attach 15 | 7 1 . 7 Attach 7 | . 2 2 3 Detach 1 | . . . 1 Swap 7 | 1 2 . 4 Drop 12 | . 3 . 9 Fire 104 | 10 56 . 38 Melee . | . . . . Ram . | . . . . Kick . | . . . . Crush . | . . . . Escape Stasis . | . . . . Rewire . | . . . . Trap . | . . . . Miscellaneous . | . . . . Route ------- -11/Scrapyard -10/Materials (discovered 3 exits: [*Mat] / *Min x2) -10/Mines (discovered 2 exits: [*Mat] / *Sub) -10/Subcaves History --------- Turn | Location | Event 11 | -11/Scrapyard | Discovered new exit (range 14) 142 | -11/Scrapyard | Entered Materials 259 | -10/Materials | Discovered new exit (range 16) 314 | -10/Materials | Build established: Mutant 484 | -10/Materials | Lost 3 parts (1p1n1w) 504 | -10/Materials | Discovered new exit (range 13) 661 | -10/Materials | Discovered new exit (range 8) 691 | -10/Materials | Central database locked down 749 | -10/Materials | Build established: Scavenger-Mutant 854 | -10/Materials | Entered Mines 893 | -10/Mines | Learned Materials trap positions 999 | -10/Mines | Discovered new exit (range 9) 1063 | -10/Mines | Discovered new exit (range 6) 1081 | -10/Mines | Learned location of Zion (-7) 1094 | -10/Mines | Assembled infested the area 1119 | -10/Mines | Core integrity fell below 50% 1125 | -10/Mines | Entered Subcaves 1126 | -10/Subcaves | Approached by a straggling Scientist 1149 | -10/Subcaves | A swath of the cavern ceiling suddenly collapsed 1149 | -10/Subcaves | Lost 5 parts (1p2n2w) 1218 | -10/Subcaves | Learned location of Mines (-9) 1255 | -10/Subcaves | Shifting Twisted Machinery released Mak. Power Source 1592 | -10/Subcaves | Core integrity fell below 20% 1803 | -10/Subcaves | Shifting Twisted Machinery released Flamer 2501 | -10/Subcaves | Visited Clippyterm 2504 | -10/Subcaves | Learned Factory fabricator intel 2504 | -10/Subcaves | Learned 40 Factory zone layouts 2635 | -10/Subcaves | A swath of the cavern ceiling suddenly collapsed 2660 | -10/Subcaves | Met a Zionite searching for "candidates" 2903 | -10/Subcaves | Destroyed by KL-4N7(R) with Subdweller Laser Last Messages --------------- subatomizers out of the Subcaves, I can warn that doing so is a one-way ticket to summoning unimaginable chaos on any area not hardened against them. That includes... just about anywhere. 02607_ Connecting with UFD SUBCON Station... >>Open Door Sealed Heavy Doors opened. A swath of the cavern ceiling suddenly collapses. 02655_ HH-IEV(z): "She is not going to be happy we haven't found any suitable candidates yet." 02660_ HH-IEV(z): "Hey you! It's really dangerous down here, I feel that you could die at any moment. For your health and safety might I suggest a trip to Zion?" World map confirmed: -7/Zion. 02736_ Lgt. Treads destroyed. 02754_ Dropped Broken Sub. Beam Cannon. 02821_ Acquired 10 matter. Map ----- +----------------------------------------------------+ | ########????????????????????????????? | | # # ####?????????????????????????? | | ##????????????????????????? | | ### #????????????????????????? | | ###??##### ## # ## #????????????????????????? | | ?????????## ####### ##????????????????????????? | | ??????????## ##?????# ##????????????????????????? | | ???????????###??????# ##???????????????????????? | | ????????????????????# #???????????????????????? | | ????????????????????# ##??????????????????????? | | ????????????????????## #??????????????????????? | | ?????????????????????# #??????????????????????? | | ?????????????????????# #??????????????????????? | | ?????????????????????# #??????????????????????? | | ????????????????????## #??????????????????????? | | ????????????????????# ##??????????????????????? | | ????????????????????# ##???????????????????????? | | ????????????????????# ###??????????????????????? | | ????????????????????## #??????????????????????? | | ?????????????????????## #??????????????????????? | | ?????????????????????## #??????????????????????? | | ?????????????????????# #??????????????????????? | | ??????????######?###?# ##?###??????????????????? | | ??????????# # ### #### #### ####???????????????? | | ??????????# # "" "#???????????????? | | ?????????## @ "" "##??????????????? | | ?????????# # R # "" ""#??????????????? | | ?????????## ## ####### """""#??????????????? | | ?????????# ## ##??#### "####??????????????? | | ?????????# ## #??# "#?????????????????? | | ?????????# ##??## ""##????????????????? | | ?????????## ####????# "" #????????????????? | | ?????????# #####?????## " "" #????????????????? | | ?????????# #??????## "## #????????????????? | | ?????????# #???????##### #????????????????? | | ########## ##?????????##"" #??????######????? | | ## #???###???##"" #??????#% ["##???? | | # % #??## ##?## " ##??????##"%%[#???? | | # ####% & " #??# ### " ##????????####&#???? | | ## ##?##& " ##?# ######?????#![&"#???? | | ?## #??# "" #### ### ########&######? | | ??# ####% """"" ###" ### "% &[ ## "%"# #? | | ??# " "" " ""######=& = =& ## | | ??# ####"" ""#????#### ### && ### | | ?## #??###########???????## ###?# ### | | ## ######?????????????????????###???# #### | | ##????????????????????????????????### ## | | ###?????????????????????????????????## | | ##???????????????????????????????????# | | ###????????????????????????????????????## ## # | +----------------------------------------------------+ Best States ------------- Heat Dissipation 25 Coolant Potential 50 Energy Generation 10 Energy Capacity 250 Matter Stores 300 Matter Capacity 300 Sight Range 21 Terrain Scan Density 10 Evasion (%) 42 Recoil Reduction 2 Item Schematics ----------------- None Robot Schematics ------------------ None Fabricated ------------ Nothing Repaired ---------- Nothing Alien Tech Used ----------------- None Achievements -------------- None Challenges ------------ None Game ------ Seed PointyArmageddonTube Manual? 0 Play Time 00:20:51 Cumulative 510.1 hours Start 2025.07.10 @ 19:35:41 End 2025.07.10 @ 20:03:23 Sessions 1 Manual Loads 0 Difficulty Rogue Special Mode None Game No. 112 Rogue 112 Adventurer 0 Explorer 0 Win Type - Total 36 Types 17/1/8/1/1/0/3/3/1/1 Lore% 91 Gallery% 80 Achievement% 82 Wizard Run 0 Options --------- Layout 1 ASCII 0 Keyboard 0 Movement Mouse Keybinds 0 Fullscreen 1 Font 24/Smallcaps Map View 50x35 Zoom Use 0% Tactical HUD 1 Map Filters NONE Filters NONE Steam 1 RUN: af1504d2-d8d2-4959-8ead-ec12165d1f9a